bitfinex-derivatives/quotes_SOLF0:USTF0_20250816
["timestamp","ask_amount","ask_price","bid_price","bid_amount"]
[1755338841463,4.41819766,186.86,186.77,2.9]
[1755338841464,2.84,186.81,186.77,2.9]
[1755338841664,2.84,186.8,186.77,2.9]
[1755338841873,5.3501,186.79,186.78,2.9]
[1755338843568,2.84,186.85,186.73,2.9]
[1755338843768,3.92649051,186.84,186.76,4.56393019]
[1755338843974,3.92649051,186.83,186.77,2.9]
[1755338844170,3.9263866,186.82,186.77,2.9]
[1755338844472,2.84,186.82,186.79,2.9]
[1755338844670,2.84,186.82,186.8,2.9]
[1755338845175,2.84,186.81,186.8,2.9]
[1755338845378,8.1893,186.81,186.8,2.9]
[1755338845875,2.84,186.81,186.8,2.9]
[1755338846371,5.3491,186.82,186.8,2.9]
[1755338846572,5.3491,186.82,186.81,2.9]
[1755338846772,9.27658763,186.82,186.81,2.9]
[1755338847775,3.92748763,186.82,186.81,2.9]
[1755338848777,2.84,186.85,186.82,2.9]
[1755338848976,4.41819766,186.87,186.82,2.9]
[1755338848977,6.76818405,186.84,186.82,2.9]
[1755338849177,3.92818405,186.83,186.82,2.9]
[1755338851779,12.11698405,186.83,186.82,2.9]
[1755338852578,6.76818405,186.83,186.82,2.9]
[1755338853579,12.11698405,186.83,186.82,2.9]
[1755338854582,8.1891,186.82,186.8,2.9]
[1755338854883,5.3491,186.82,186.81,2.9]
[1755338855180,9.27959096,186.82,186.81,2.9]
[1755338856081,3.93049096,186.82,186.81,2.9]
[1755338856382,9.27949096,186.82,186.81,2.9]
[1755338857386,3.93049096,186.82,186.81,2.9]
[1755338857588,7.25819766,186.9,186.81,2.9]
[1755338857777,7.25819766,186.9,186.85,2.9]
[1755338857980,5.3481,186.86,186.84,2.88723814]
[1755338858580,5.3481,186.86,186.85,2.9]
[1755338859190,5.3477,186.87,186.85,2.9]
[1755338859887,5.3477,186.87,186.86,2.9]
[1755338860689,5.3474,186.88,186.86,2.9]
[1755338861185,2.84,186.91,186.86,2.9]
[1755338861884,5.3474,186.88,186.86,2.9]
[1755338862093,120.04410141,186.92,186.86,2.9]
[1755338864093,120.04410141,186.92,186.86,8.2478]
[1755338864385,120.04410141,186.92,186.87,2.9]
[1755338864591,5.347,186.9,186.87,2.9]
[1755338864987,5.3466,186.91,186.87,2.88723814]
[1755338865193,117.20410141,186.92,186.88,2.9]
[1755338865493,2.84,186.91,186.89,2.9]
[1755338865688,5.347,186.9,186.88,2.9]
[1755338866589,149.6,186.94,186.88,2.9]
[1755338866892,2.84,186.97,186.91,2.9]
[1755338867489,5.347,186.89,186.88,2.9]
[1755338870391,20.47819766,186.99,186.87,2.88723814]
[1755338870594,3.89790336,186.98,186.88,3.0]
[1755338870796,3.89790336,186.97,186.88,3.0]
[1755338870990,3.89790336,186.97,186.87,2.88723814]
[1755338870991,2.83,186.89,186.86,3.0]
[1755338871185,2.83,186.89,186.87,3.0]
[1755338871386,2.83,186.88,186.87,3.0]
[1755338871793,20.47819766,186.96,186.85,3.0]
[1755338871794,2.88723814,186.94,186.85,3.0]
[1755338871998,2.83,186.92,186.85,3.0]
[1755338872193,5.3471,186.89,186.86,3.0]
[1755338872390,2.83,186.9,186.86,3.0]
[1755338872599,2.83,186.9,186.81,2.88723814]
[1755338872600,2.83,186.9,186.82,3.0]
[1755338872800,5.3488,186.83,186.82,3.0]
[1755338879711,2.83,186.83,186.76,3.0]
[1755338880717,2.83,186.81,186.76,3.0]
[1755338880914,2.83,186.81,186.74,3.0]
[1755338881216,2.83,186.81,186.62,368.50335328]
[1755338881430,2.83,186.79,186.68,2.88723814]
[1755338881614,2.83,186.79,186.69,3.0]
[1755338881615,2.83,186.77,186.69,3.0]
[1755338881810,2.88723814,186.79,186.69,3.0]
[1755338881811,2.83,186.75,186.69,3.0]
[1755338882614,2.83,186.75,186.66,2.88723814]
[1755338882922,2.83,186.75,186.64,3.0]
[1755338883115,2.83,186.76,186.67,3.0]
[1755338883315,2.83,186.74,186.65,3.0]
[1755338883617,2.83,186.73,186.65,3.0]
[1755338885923,2.83,186.73,186.67,3.0]
[1755338886123,18.94723814,186.79,186.69,3.0]
[1755338886324,2.83,186.75,186.69,3.0]
[1755338886512,2.83,186.75,186.69,8.3527]
[1755338886720,2.83,186.75,186.7,3.0]
[1755338886924,2.83,186.74,186.71,3.0]
[1755338887218,2.83,186.73,186.71,3.0]
[1755338887420,2.83,186.73,186.69,5.3527]
[1755338887622,5.3514,186.74,186.72,3.0]
[1755338887817,359.54,186.8,186.73,3.0]
[1755338888018,11.63200135,186.89,186.73,3.0]
[1755338888019,2.83,186.79,186.73,3.0]
[1755338888221,2.83,186.84,186.76,3.0]
[1755338888422,8.1787,186.84,186.79,5.3497]
[1755338888623,2.83,186.83,186.75,2.88723814]
[1755338888921,2.83,186.83,186.81,3.0]
[1755338890125,18.94723814,186.89,186.81,3.0]
[1755338890126,2.83,186.88,186.81,3.0]
[1755338890618,2.83,186.9,186.79,3.0]
[1755338890824,2.83,186.88,186.79,3.0]
[1755338891021,2.83,186.86,186.79,3.0]
[1755338891218,5.3496,186.8,186.79,3.0]
[1755338891419,2.88723814,186.83,186.75,3.0]
[1755338891722,2.83,186.79,186.7,3.0]
[1755338892920,2.83,186.79,186.56,2.88723814]
[1755338892921,2.83,186.73,186.67,3.0]
[1755338893125,2.83,186.73,186.61,3.0]
[1755338893318,2.83,186.7,186.61,3.0]
[1755338893514,2.83,186.7,186.59,3.0]
[1755338893921,2.83,186.7,186.42,16.0811]
[1755338893922,2.88723814,186.65,186.47,3.0]
[1755338894116,2.83,186.64,186.53,3.0]
[1755338897517,2.83,186.64,186.54,3.0]
[1755338898821,2.83,186.64,186.58,3.1]
[1755338899421,2.83,186.64,186.59,5.3556]
[1755338899622,2.83,186.64,186.44,148.46]
[1755338899623,2.83,186.64,186.55,3.1]
[1755338899821,2.84,186.7,186.55,3.1]
[1755338900121,2.84,186.7,186.54,4.56179954]
[1755338900122,2.84,186.67,186.62,5.3548]
[1755338900427,2.84,186.69,186.58,4.56179954]
[1755338900622,2.84,186.69,186.62,3.1]
[1755338901530,151.32,186.71,186.65,3.1]
[1755338901828,2.84,186.7,186.65,3.1]
[1755338902123,2.84,186.7,186.66,3.1]
[1755338902330,2.84,186.7,186.58,4.56179954]
[1755338902331,2.84,186.7,186.59,3.1]
[1755338902631,2.84,186.7,186.49,3.1]
[1755338902831,2.84,186.66,186.55,3.1]
[1755338903420,2.84,186.66,186.49,4.56179954]
[1755338903626,2.84,186.66,186.5,3.1]
[1755338904030,2.84,186.66,186.54,5.357]
[1755338904231,2.84,186.66,186.55,3.1]
[1755338905927,2.84,186.66,186.49,4.56179954]
[1755338906134,2.84,186.66,186.43,507.96]
[1755338906135,2.84,186.62,186.5,3.1]
[1755338906528,2.84,186.62,186.49,4.56179954]
[1755338906529,2.84,186.62,186.56,5.3565]
[1755338906729,2.84,186.62,186.58,3.1]
[1755338907035,2.84,186.62,186.59,3.1]
[1755338907233,2.84,186.62,186.57,3.1]
[1755338907434,4.56179954,186.67,186.58,3.1]
[1755338907635,2.84,186.66,186.58,3.1]
[1755338910850,2.84,186.66,186.54,3.1]
[1755338912337,2.84,186.66,186.62,3.1]
[1755338912635,2.84,186.69,186.62,3.1]
[1755338912837,2.84,186.75,186.62,3.1]
[1755338913038,2.84,186.73,186.62,3.1]
[1755338913635,2.84,186.73,186.67,3.1]
[1755338914032,2.84,186.73,186.61,4.56179954]
[1755338914240,2.84,186.71,186.64,3.1]
[1755338916240,2.84,186.73,186.64,3.1]
[1755338916438,2.84,186.75,186.64,3.1]
[1755338916638,3.89998811,186.74,186.68,3.1]
[1755338916838,2.84,186.75,186.68,3.1]
[1755338917034,507.64,186.79,186.68,3.1]
[1755338917238,2.84,186.77,186.68,3.1]
[1755338917441,3.90047363,186.76,186.68,3.1]
[1755338917741,2.84,186.77,186.68,3.1]
[1755338918132,5.3514,186.74,186.71,3.1]
[1755338918537,2.84,186.77,186.71,3.1]
[1755338918736,5.3519,186.72,186.71,3.1]
[1755338919144,5.3518,186.73,186.71,3.1]
[1755338919345,2.84,186.75,186.65,3.1]
[1755338919846,2.84,186.75,186.66,3.1]
[1755338920544,2.84,186.75,186.66,5.3536]
[1755338920746,2.84,186.73,186.67,3.1]
[1755338921642,2.84,186.77,186.68,3.1]
[1755338921844,510.48,186.79,186.68,3.1]
[1755338922040,3.9118412,186.78,186.69,4.56179954]
[1755338922247,3.9118412,186.77,186.7,3.1]
[1755338922548,150.82,186.79,186.7,3.1]
[1755338922740,2.84,186.77,186.7,3.1]
[1755338923043,3.91416243,186.76,186.7,3.1]
[1755338923347,2.84,186.77,186.7,3.1]
[1755338923546,3.91593041,186.76,186.7,3.1]
[1755338923740,2.84,186.77,186.7,3.1]
[1755338923938,6.75588153,186.76,186.7,3.1]
[1755338924136,2.84,186.76,186.7,3.1]
[1755338924341,3.91831469,186.75,186.7,3.1]
[1755338924642,2.84,186.76,186.7,3.1]
[1755338924846,2.84,186.76,186.7,8.4524]
[1755338925044,2.84,186.76,186.71,3.1]
[1755338925843,2.84,186.78,186.71,3.1]
[1755338926144,3.9185774,186.77,186.72,3.1]
[1755338926346,2.84,186.78,186.72,3.1]
[1755338926546,3.9188385,186.77,186.72,3.1]
[1755338926746,2.84,186.78,186.72,3.1]
[1755338926950,6.7588385,186.77,186.72,3.1]
[1755338927242,150.82,186.79,186.72,5.3518]
[1755338927447,3.91879656,186.78,186.7,3.1]
[1755338927640,5.3507,186.77,186.73,5.3514]
[1755338927841,2.84,186.81,186.74,3.1]
[1755338928042,3.91903308,186.8,186.74,3.1]
[1755338928342,2.84,186.81,186.74,3.1]
[1755338928540,5.3506,186.77,186.74,3.1]
[1755338928740,2.84,186.81,186.74,3.1]
[1755338928946,3.91829479,186.8,186.74,3.1]
[1755338929246,2.84,186.83,186.74,3.1]
[1755338929448,2.84,186.81,186.74,3.1]
[1755338929648,2.84,186.79,186.74,3.1]
[1755338929849,5.3516,186.74,186.7,5.3524]
[1755338930052,2.84,186.78,186.7,5.3524]
[1755338930347,2.84,186.78,186.71,5.3522]
[1755338930547,2.84,186.78,186.72,2.89]
[1755338931049,5.3513,186.74,186.72,2.89]
[1755338933046,2.84,186.81,186.72,2.89]
[1755338933246,150.46,186.85,186.73,4.56179954]
[1755338933450,3.91681555,186.84,186.74,2.89]
[1755338933643,147.62,186.85,186.74,2.89]
[1755338934040,150.46,186.85,186.8,2.89]
[1755338934445,150.46,186.85,186.74,2.89]
[1755338934648,150.46,186.85,186.78,2.89]
[1755338935046,2.84,186.84,186.78,2.89]
[1755338935345,19.97663846,186.83,186.74,2.89]
[1755338935545,2.84,186.81,186.74,2.89]
[1755338936551,147.62,186.85,186.74,2.89]
[1755338936857,6.75771286,186.84,186.74,2.89]
[1755338937048,2.84,186.84,186.74,2.89]
[1755338937449,2.84,186.84,186.74,5.3513]
[1755338937642,2.84,186.84,186.75,2.89]
[1755338941150,5.3505,186.77,186.75,2.89]
[1755338941456,2.84,186.84,186.75,2.89]
[1755338941856,5.3506,186.77,186.75,2.89]
[1755338942054,2.84,186.82,186.75,2.89]
[1755338942355,5.3498,186.8,186.77,2.89]
[1755338942557,2.84,186.84,186.77,2.89]
[1755338942958,147.62,186.85,186.78,2.89]
[1755338943358,5.3488,186.83,186.79,5.3496]
[1755338943748,5.3488,186.83,186.8,2.89]
[1755338943949,2.84,186.87,186.8,2.89]
[1755338944259,3.91552845,186.86,186.76,2.89]
[1755338944450,2.84,186.84,186.72,5.3519]
[1755338944650,2.84,186.82,186.73,2.89]
[1755338944957,2.84,186.82,186.69,2.89]
[1755338945556,2.84,186.82,186.72,5.3518]
[1755338945760,2.84,186.82,186.73,2.89]
[1755338947267,2.84,186.82,186.73,8.2415]
[1755338947466,2.84,186.82,186.69,2.89]
[1755338948271,2.84,186.82,186.71,5.3521]
[1755338948466,2.84,186.82,186.72,2.89]
[1755338949272,3.91769574,186.81,186.72,2.89]
[1755338949472,2.84,186.8,186.72,2.89]
[1755338951269,3.92185275,186.79,186.72,2.89]
[1755338951470,2.83,186.78,186.72,2.89]
[1755338952170,5.3516,186.73,186.72,2.89]
[1755338952364,2.83,186.82,186.7,4.56179954]
[1755338952570,3.92425587,186.81,186.71,2.89]
[1755338952769,3.92449807,186.8,186.71,2.89]
[1755338953069,2.83,186.79,186.73,2.89]
[1755338953872,5.3513,186.74,186.73,2.89]
[1755338954172,2.83,186.79,186.73,2.89]
[1755338954369,2.83,186.77,186.75,2.89]
[1755338954770,2.83,186.77,186.65,4.56179954]
[1755338954771,2.83,186.77,186.76,2.89]
[1755338954977,4.41420095,186.83,186.65,4.56179954]
[1755338955275,2.83,186.81,186.71,5.3519]
[1755338955477,2.83,186.79,186.72,2.89]
[1755338955771,2.83,186.77,186.68,5.353]
[1755338955973,2.83,186.77,186.69,2.89]
[1755338956169,5.3519,186.72,186.69,2.89]
[1755338956770,2.83,186.75,186.69,2.89]
[1755338956969,3.93549757,186.74,186.65,4.56179954]
[1755338957170,2.83,186.73,186.66,5.3535]
[1755338957373,5.3519,186.72,186.71,2.89]
[1755338957876,5.3532,186.68,186.66,2.89]
[1755338958171,5.3532,186.68,186.65,4.56179954]
[1755338958172,2.83,186.72,186.67,2.89]
[1755338958378,2.83,186.72,186.61,4.56179954]
[1755338958379,3.93812276,186.71,186.64,2.89]
[1755338958581,5.3532,186.68,186.64,2.89]
[1755338958769,4.41420095,186.76,186.64,2.89]
[1755338958973,5.3524,186.71,186.67,5.3533]
[1755338959176,5.3524,186.71,186.68,2.95]
[1755338959370,5.3524,186.71,186.67,5.3533]
[1755338959576,2.84,186.72,186.62,2.95]
[1755338959879,2.84,186.7,186.62,2.95]
[1755338960788,2.84,186.72,186.62,2.95]
[1755338960978,3.94077354,186.71,186.62,2.95]
[1755338961177,2.84,186.72,186.62,2.95]
[1755338961378,2.84,186.7,186.62,2.95]
[1755338961582,4.41420095,186.73,186.62,2.95]
[1755338961583,2.84,186.68,186.62,2.95]
[1755338963086,5.3544,186.63,186.62,2.95]
[1755338963281,2.84,186.63,186.6,2.95]
[1755338963586,2.84,186.65,186.55,4.56179954]
[1755338963781,5.3541,186.64,186.63,2.95]
[1755338964981,5.3552,186.61,186.56,2.95]
[1755338965188,2.84,186.64,186.56,2.95]
[1755338965687,5.3551,186.61,186.56,2.95]
[1755338965981,2.84,186.64,186.56,2.95]
[1755338966382,5.3558,186.59,186.55,9.91839954]
[1755338966788,5.3558,186.59,186.58,2.95]
[1755338967284,5.3562,186.57,186.56,2.95]
[1755338969984,5.3571,186.54,186.51,4.56179954]
[1755338970179,2.84,186.63,186.52,2.95]
[1755338970491,2.84,186.61,186.56,2.95]
[1755338970690,16.06,186.66,186.57,2.95]
[1755338970890,2.84,186.64,186.57,2.95]
[1755338971582,16.06,186.64,186.53,2.95]
[1755338971785,2.84,186.61,186.49,2.95]
[1755338971981,2.84,186.6,186.49,2.95]
[1755338972178,2.84,186.58,186.49,2.95]
[1755338972590,18.9,186.57,186.45,2.95]
[1755338972792,5.3592,186.47,186.43,5.36]
[1755338973090,5.3592,186.47,186.46,2.95]
[1755338973588,5.3588,186.48,186.46,2.95]
[1755338974392,5.3591,186.47,186.46,2.95]
[1755338974689,2.84,186.51,186.46,2.95]
[1755338974884,5.3588,186.49,186.46,2.95]
[1755338975290,2.84,186.51,186.46,2.95]
[1755338976895,2.84,186.56,186.42,2.95]
[1755338977388,2.84,186.49,186.43,2.95]
[1755338977986,2.84,186.51,186.45,2.95]
[1755338978691,2.84,186.51,186.39,2.95]
[1755338979785,16.06,186.54,186.37,48.56179954]
[1755338979786,2.84,186.48,186.38,2.95]
[1755338979985,16.06,186.54,186.38,2.95]
[1755338980179,2.84,186.53,186.38,2.95]
[1755338980594,2.84,186.52,186.38,2.95]
[1755338980900,2.84,186.51,186.4,2.95]
[1755338981494,18.9,186.54,186.43,2.95]
[1755338981697,2.84,186.53,186.43,2.95]
[1755338982197,16.06,186.54,186.35,403.94]
[1755338982397,2.84,186.53,186.39,2.95]
[1755338982996,5.3595,186.46,186.42,5.3603]
[1755338983199,16.06,186.54,186.43,2.95]
[1755338983397,2.84,186.51,186.43,2.95]
[1755338983595,2.84,186.51,186.38,2.95]
[1755338984101,5.3604,186.43,186.38,5.3616]
[1755338984298,2.84,186.46,186.39,2.95]
[1755338984496,2.84,186.48,186.39,2.95]
[1755338984799,2.84,186.48,186.41,2.95]
[1755338986394,20.62179954,186.56,186.41,2.95]
[1755338986395,5.3605,186.42,186.41,2.95]
[1755338986796,2.84,186.45,186.43,2.95]
[1755338987498,2.84,186.44,186.35,408.50179954]
[1755338987802,2.84,186.44,186.42,2.95]
[1755338988096,2.84,186.5,186.36,2.95]
[1755338988296,2.84,186.48,186.36,2.95]
[1755338988896,5.36,186.44,186.4,5.3609]
[1755338989103,2.84,186.48,186.41,2.85]
[1755338990298,2.84,186.48,186.43,2.85]
[1755338990498,2.85,186.52,186.36,2.85]
[1755338990801,5.3604,186.43,186.39,5.3613]
[1755338991001,5.3604,186.43,186.36,2.85]
[1755338991002,2.85,186.46,186.4,2.85]
[1755338991401,5.3604,186.43,186.4,2.85]
[1755338991896,5.3608,186.41,186.4,2.85]
[1755338992506,8.2108,186.41,186.4,2.85]
[1755338992896,16.06,186.45,186.36,2.85]
[1755338993098,5.75033516,186.44,186.36,2.85]
[1755338993304,2.85,186.43,186.36,2.85]
[1755338993604,2.85,186.46,186.36,2.85]
[1755338994201,5.3616,186.39,186.36,2.85]
[1755338994803,2.85,186.43,186.36,2.85]
[1755338995200,5.362,186.37,186.36,2.85]
[1755338996204,2.85,186.44,186.36,2.85]
[1755338996400,2.85,186.44,186.38,2.85]
[1755338997508,2.85,186.47,186.38,2.85]
[1755338997899,3.89335312,186.46,186.38,2.85]
[1755338998095,5.3614,186.39,186.38,2.85]
[1755338998304,2.85,186.42,186.33,2.85]
[1755338999202,5.3628,186.34,186.33,2.85]
[1755339000109,2.85,186.38,186.33,2.85]
[1755339000310,2.85,186.44,186.33,2.85]
[1755339000606,2.85,186.44,186.37,2.85]
[1755339001011,5.3615,186.39,186.37,2.85]
[1755339001410,5.361,186.41,186.37,5.3619]
[1755339001604,5.361,186.41,186.38,2.85]
[1755339002006,2.85,186.45,186.39,2.85]
[1755339002212,364.67420095,186.5,186.39,2.85]
[1755339002406,3.90585847,186.49,186.39,4.57041418]
[1755339002609,150.01420095,186.53,186.44,2.85]
[1755339002813,6.756724,186.52,186.44,2.85]
[1755339003016,2.85,186.5,186.44,2.85]
[1755339003312,145.6,186.53,186.35,4.57041418]
[1755339003313,2.85,186.48,186.35,4.57041418]
[1755339003513,2.85,186.48,186.16,4.57041418]
[1755339003514,5.3605,186.42,186.41,2.85]
[1755339003704,2.85,186.44,186.32,4.57041418]
[1755339003904,6.75762719,186.43,186.33,2.85]
[1755339004111,5.3615,186.39,186.36,2.85]
[1755339004910,5.3612,186.4,186.36,5.3622]
[1755339005120,5.3612,186.4,186.37,2.85]
[1755339005616,5.3612,186.4,186.38,2.85]
[1755339005818,5.3612,186.4,186.39,2.85]
[1755339008613,5.3616,186.38,186.36,2.85]
[1755339008814,2.85,186.42,186.35,2.85]
[1755339009116,4.57041418,186.47,186.32,7.42041418]
[1755339009117,2.85,186.4,186.32,7.42041418]
[1755339009314,4.37454241,186.44,186.33,2.85]
[1755339009315,2.85,186.42,186.33,2.85]
[1755339009616,2.85,186.4,186.33,2.85]
[1755339009815,3.91973411,186.39,186.34,2.85]
[1755339010016,2.85,186.4,186.34,2.85]
[1755339010417,2.85,186.4,186.34,8.2127]
[1755339010618,2.85,186.4,186.35,2.85]
[1755339011012,2.85,186.43,186.36,2.85]
[1755339011216,3.92172238,186.42,186.36,2.85]
[1755339011522,2.85,186.4,186.37,2.85]
[1755339011712,2.85,186.42,186.37,2.85]
[1755339011916,3.92379673,186.41,186.37,2.85]
[1755339012117,2.85,186.42,186.37,8.2116]
[1755339012313,3.92636514,186.41,186.38,2.85]
[1755339012514,2.85,186.44,186.38,2.85]
[1755339012723,2.85,186.42,186.39,2.85]
[1755339013020,3.9264984,186.41,186.39,2.85]
[1755339013221,2.85,186.42,186.35,5.3624]
[1755339013424,3.92877623,186.41,186.36,2.85]
[1755339013617,7.22454241,186.45,186.36,2.85]
[1755339013822,6.9069186,186.44,186.36,2.85]
[1755339014023,3.92877623,186.43,186.38,2.85]
[1755339014221,3.92877623,186.42,186.38,2.85]
[1755339014424,3.92877623,186.41,186.38,2.85]
[1755339014725,3.92877623,186.4,186.38,2.85]
[1755339014925,2.85,186.41,186.38,2.85]
[1755339015121,3.93167928,186.4,186.38,2.85]
[1755339015328,2.85,186.41,186.38,2.85]
[1755339016031,2.85,186.41,186.39,2.85]
[1755339016328,6.78706791,186.4,186.39,2.85]
[1755339017226,12.14806791,186.4,186.39,2.85]
[1755339018021,2.85,186.39,186.29,2.85]
[1755339018226,2.85,186.37,186.29,2.85]
[1755339018527,4.37454241,186.41,186.29,2.85]
[1755339018728,3.93810269,186.4,186.29,2.85]
[1755339018926,5.363,186.34,186.29,2.85]
[1755339019126,5.363,186.34,186.3,5.3639]
[1755339019321,2.85,186.38,186.31,2.85]
[1755339019528,3.93652473,186.37,186.31,2.85]
[1755339019726,2.85,186.38,186.31,8.2136]
[1755339020030,2.85,186.4,186.32,2.85]
[1755339020231,3.93707178,186.39,186.32,2.85]
[1755339020532,3.93730961,186.38,186.32,2.85]
[1755339020730,2.85,186.39,186.32,2.85]
[1755339020928,3.93696868,186.38,186.28,4.57041418]
[1755339021132,2.85,186.35,186.33,2.85]
[1755339021319,2.85,186.4,186.29,2.85]
[1755339021525,2.85,186.38,186.29,2.85]
[1755339021725,3.9368856,186.37,186.29,2.85]
[1755339021924,2.85,186.35,186.29,2.85]
[1755339022125,2.85,186.33,186.24,2.85]
[1755339022330,2.85,186.31,186.24,2.85]
[1755339022724,3.93281044,186.3,186.24,2.85]
[1755339022925,2.90469924,186.33,186.24,2.85]
[1755339022926,2.85,186.28,186.24,2.85]
[1755339023122,2.85,186.26,186.24,2.85]
[1755339023323,2.85,186.29,186.19,2.90469924]
[1755339023835,2.85,186.28,186.26,2.85]
[1755339024333,2.85,186.27,186.24,2.85]
[1755339024630,2.85,186.27,186.25,2.85]
[1755339024832,2.85,186.32,186.19,2.85]
[1755339025032,2.85,186.3,186.19,2.85]
[1755339025930,2.85,186.32,186.22,4.57720706]
[1755339026129,2.85,186.32,186.27,5.3648]
[1755339026330,2.85,186.32,186.29,2.85]
[1755339026530,2.85,186.32,186.3,2.85]
[1755339026730,2.85,186.37,186.23,2.85]
[1755339026931,2.85,186.35,186.26,2.85]
[1755339027128,2.85,186.33,186.26,2.85]
[1755339027631,3.91898767,186.32,186.26,2.85]
[1755339027840,2.85,186.3,186.27,2.85]
[1755339028037,2.85,186.29,186.27,2.85]
[1755339028334,2.85,186.29,186.28,2.85]
[1755339029132,4.37454241,186.37,186.22,4.57720706]
[1755339029339,6.76833334,186.36,186.26,4.57720706]
[1755339029632,2.85,186.36,186.27,2.85]
[1755339029934,2.85,186.39,186.32,2.85]
[1755339030340,5.3619,186.37,186.33,5.3629]
[1755339030528,2.85,186.39,186.35,2.85]
[1755339030722,2.85,186.38,186.35,2.85]
[1755339030925,5.3619,186.37,186.36,2.85]
[1755339031432,5.3614,186.39,186.35,5.3624]
[1755339031635,2.85,186.46,186.31,2.85]
[1755339031833,6.77124204,186.45,186.35,2.85]
[1755339032138,5.361,186.41,186.38,2.85]
[1755339032331,8.211,186.41,186.39,2.85]
[1755339032524,5.3606,186.42,186.38,5.3614]
[1755339032730,16.06,186.48,186.4,2.85]
[1755339033031,5.3608,186.41,186.4,2.85]
[1755339033234,2.85,186.41,186.35,2.85]
[1755339033632,5.3621,186.37,186.35,2.85]
[1755339033833,2.85,186.41,186.34,2.85]
[1755339034029,2.85,186.45,186.34,2.85]
[1755339034232,2.85,186.45,186.35,2.85]
[1755339034438,2.85,186.47,186.35,2.85]
[1755339034635,8.95174947,186.55,186.39,2.85]
[1755339034839,2.85,186.53,186.44,2.85]
[1755339035036,2.85,186.51,186.44,2.85]
[1755339035235,5.3596,186.45,186.44,2.85]
[1755339035728,2.85,186.5,186.44,2.85]
[1755339036338,5.3596,186.45,186.44,2.85]
[1755339036537,4.37454241,186.54,186.43,2.88416973]
[1755339036739,2.85,186.46,186.43,2.85]
[1755339037033,5.3602,186.44,186.39,5.3613]
[1755339037230,2.85,186.46,186.38,9.93880706]
[1755339037626,4.37454241,186.54,186.39,2.85]
[1755339037831,2.85,186.52,186.42,2.85]
[1755339038037,5.359,186.48,186.42,2.85]
[1755339038240,2.85,186.52,186.42,2.85]
[1755339038431,2.85,186.52,186.43,5.3599]